bitfinex-derivatives/quotes_BTCF0:USTF0_20241025
["timestamp","ask_amount","ask_price","bid_price","bid_amount"]
[1729817917353,0.42522091,68029.0,68028.0,0.073524]
[1729817918846,0.47036119,68029.0,68028.0,0.073524]
[1729817919457,0.3608,68029.0,68028.0,0.073524]
[1729817920057,0.51336092,68029.0,68028.0,0.073524]
[1729817920258,0.3608,68029.0,68028.0,0.073524]
[1729817923248,0.3608,68029.0,68028.0,0.14980446]
[1729817923454,0.3608,68029.0,68028.0,0.22608492]
[1729817924044,0.3608,68029.0,68028.0,0.45056821]
[1729817924248,0.43900046,68036.0,68033.0,0.073518]
[1729817924444,0.43708046,68036.0,68034.0,0.073517]
[1729817925059,0.43708046,68036.0,68030.0,0.073521]
[1729817925264,0.07628046,68031.0,68030.0,0.073521]
[1729817925553,0.14980146,68031.0,68030.0,0.073521]
[1729817926160,0.14980246,68030.0,68028.0,0.10241205]
[1729817926360,0.3608,68029.0,68028.0,0.10241205]
[1729817929458,0.23410246,68030.0,68028.0,0.22422248]
[1729817929663,0.2456309,68030.0,68029.0,0.10241205]
[1729817929854,0.2456309,68030.0,68027.0,0.073525]
[1729817929855,0.67152119,68030.0,68027.0,0.073525]
[1729817930055,0.06509029,68029.0,68027.0,0.073525]
[1729817930457,0.0831,68028.0,68027.0,0.073525]
[1729817930757,0.47297696,68028.0,68027.0,0.073525]
[1729817932160,0.47301647,68028.0,68027.0,0.073525]
[1729817935064,0.02911647,68028.0,68027.0,0.1736635]
[1729817935859,0.09140543,68041.0,68027.0,0.3505635]
[1729817935860,0.02935978,68036.0,68027.0,0.3505635]
[1729817936060,0.06536983,68035.0,68034.0,0.073518]
[1729817936259,0.06536983,68035.0,68034.0,0.22608356]
[1729817936863,0.09140543,68041.0,68034.0,0.44976306]
[1729817937066,0.09140543,68041.0,68035.0,0.2236795]
[1729817937266,0.09140543,68041.0,68036.0,0.10204535]
[1729817937567,0.1029334,68041.0,68036.0,0.10204535]
[1729817937761,0.07628278,68040.0,68036.0,0.22362199]
[1729817937962,0.1029334,68041.0,68036.0,0.10204535]
[1729817937963,0.51059778,68037.0,68036.0,0.10204535]
[1729817945071,0.073518,68034.0,68026.0,0.07628278]
[1729817945268,0.16084125,68032.0,68031.0,0.073521]
[1729817945468,0.27075299,68032.0,68031.0,0.073521]
[1729817947071,0.10991174,68032.0,68031.0,0.073521]
[1729817948668,0.16265468,68032.0,68031.0,0.073521]
[1729817948968,0.23893746,68032.0,68027.0,0.073525]
[1729817949171,0.16265468,68031.0,68027.0,0.073525]
[1729817949369,0.07628278,68032.0,68027.0,0.073525]
[1729817949370,0.16265468,68030.0,68027.0,0.073525]
[1729817949565,0.16265468,68029.0,68027.0,0.073525]
[1729817949765,0.16265468,68028.0,68027.0,0.073525]
[1729817949965,0.10991174,68028.0,68027.0,0.073525]
[1729817951994,0.07628278,68032.0,68028.0,0.073524]
[1729817952274,0.07628278,68032.0,68029.0,0.22486774]
[1729817952466,0.07628278,68032.0,68030.0,0.22486774]
[1729817952665,0.07628278,68032.0,68031.0,0.22486774]
[1729817953266,0.14980278,68032.0,68031.0,0.22486774]
[1729817954071,0.14980278,68032.0,68031.0,0.10287085]
[1729817958280,0.12358953,68032.0,68031.0,0.10287085]
[1729817959678,0.05006953,68032.0,68031.0,0.10287085]
[1729817959883,0.05006953,68032.0,68031.0,0.17639185]
[1729817961181,0.41086953,68032.0,68031.0,0.17639185]
[1729817964679,0.41086953,68032.0,68031.0,0.26462086]
[1729817965578,0.3608,68032.0,68031.0,0.26462086]
[1729817966086,0.3608,68032.0,68031.0,0.17639185]
[1729817967091,0.47093603,68032.0,68031.0,0.073521]
[1729817968381,0.6172485,68032.0,68031.0,0.073521]
[1729817968787,0.47093603,68032.0,68031.0,0.073521]
[1729817969489,0.11013603,68032.0,68031.0,0.073521]
[1729817972292,0.16020556,68033.0,68031.0,0.073521]
[1729817972491,0.2564485,68032.0,68031.0,0.073521]
[1729817972685,0.25644188,68032.0,68031.0,0.073521]
[1729817974502,0.11013603,68032.0,68031.0,0.073521]
[1729817974998,0.05006953,68033.0,68031.0,0.17667549]
[1729817975189,0.05006953,68033.0,68032.0,0.19139676]
[1729817977192,0.05006953,68033.0,68032.0,0.10315449]
[1729817978586,0.05006953,68033.0,68032.0,0.22597694]
[1729817978787,0.36284,68034.0,68032.0,0.10315449]
[1729817979099,0.3608,68034.0,68033.0,0.39959356]
[1729817980089,0.3608,68034.0,68033.0,0.27681255]
[1729817980794,0.41086953,68034.0,68033.0,0.27681255]
[1729817981390,0.41086953,68034.0,68033.0,0.17667349]
[1729817981600,0.41086953,68034.0,68033.0,0.29932786]
[1729817981994,0.62322574,68034.0,68033.0,0.073519]
[1729817982597,0.62322574,68034.0,68033.0,0.08493902]
[1729817983402,0.51367844,68034.0,68033.0,0.08493902]
[1729817988401,0.6232287,68034.0,68033.0,0.05318689]
[1729817988902,0.2624287,68034.0,68033.0,0.05318689]
[1729817989527,0.2624287,68034.0,68033.0,0.15641328]
[1729817989528,0.10013906,68034.0,68033.0,0.15641328]
[1729817992510,0.10013906,68034.0,68033.0,0.27946202]
[1729817992713,0.10013906,68034.0,68033.0,0.15641328]
[1729817993206,0.10013906,68034.0,68033.0,0.2794754]
[1729817994908,0.10013906,68034.0,68033.0,0.26805538]
[1729817995114,0.17365706,68034.0,68033.0,0.22628851]
[1729817995409,0.17365706,68034.0,68033.0,0.10322639]
[1729817995410,0.26275706,68034.0,68033.0,0.10322639]
[1729817996809,0.27392346,68034.0,68033.0,0.10322639]
[1729817997024,0.63472346,68034.0,68033.0,0.10322639]
[1729817997715,0.63472346,68034.0,68025.0,0.073527]
[1729817997716,0.073524,68029.0,68025.0,0.073527]
[1729817997918,0.05006953,68026.0,68025.0,0.073527]
[1729817998111,0.1144888,68026.0,68025.0,0.073527]
[1729817998413,0.1144888,68026.0,68024.0,0.11134537]
[1729817998414,0.15962793,68026.0,68024.0,0.07909097]
[1729817998715,0.16230312,68025.0,68024.0,0.07909097]
[1729817999016,0.1095584,68025.0,68024.0,0.07909097]
[1729817999213,0.1095584,68025.0,68024.0,0.09044082]
[1729817999415,0.1095584,68025.0,68024.0,0.16396982]
[1729818004612,0.52512,68033.0,68024.0,0.16396982]
[1729818004613,0.52704,68033.0,68027.0,0.073525]
[1729818004817,0.05006953,68030.0,68028.0,0.22596884]
[1729818005118,0.05006953,68030.0,68029.0,0.22596884]
[1729818008823,0.05006953,68030.0,68029.0,0.22526355]
[1729818012618,0.05006953,68030.0,68028.0,0.07351411]
[1729818012922,0.05006953,68030.0,68015.0,0.09]
[1729818012923,0.17366306,68028.0,68026.0,0.05881828]
[1729818013114,0.12359653,68026.0,68024.0,0.05881828]
[1729818013316,0.05006953,68028.0,68023.0,0.05881828]
[1729818013317,0.12359853,68024.0,68023.0,0.05881828]
[1729818014117,0.05006953,68023.0,68022.0,0.05881828]
[1729818014318,0.12359953,68023.0,68022.0,0.05881828]
[1729818015122,0.05006953,68022.0,68021.0,0.05881828]
[1729818015329,0.14236953,68022.0,68021.0,0.05881828]
[1729818016329,0.05006953,68021.0,68020.0,0.05881828]
[1729818016524,0.41086953,68021.0,68020.0,0.05881828]
[1729818017229,0.05006953,68021.0,68020.0,0.05881828]
[1729818017529,0.48440153,68021.0,68020.0,0.05881828]
[1729818019127,0.05006953,68020.0,68016.0,0.07351411]
[1729818019323,0.36272,68021.0,68019.0,0.04406757]
[1729818019541,0.073533,68020.0,68019.0,0.04406757]
[1729818019728,0.10013906,68019.0,68012.0,0.073541]
[1729818019920,0.05006953,68012.0,68011.0,0.3608]
[1729818020227,0.07848155,68012.0,68011.0,0.3608]
[1729818022318,0.12855129,68012.0,68005.0,0.0956]
[1729818022521,0.02841223,68011.0,68007.0,0.073547]
[1729818023020,0.05006953,68012.0,68007.0,0.073547]
[1729818023217,0.02841349,68011.0,68005.0,0.01114427]
[1729818023429,0.05006953,68012.0,68004.0,0.07355]
[1729818023430,0.05006953,68007.0,68004.0,0.07355]
[1729818023627,0.073545,68010.0,68004.0,0.07355]
[1729818023833,0.02841444,68009.0,68004.0,0.07355]
[1729818024030,0.02841444,68008.0,68004.0,0.07355]
[1729818024221,0.05006953,68005.0,68004.0,0.07355]
[1729818025424,0.10013906,68004.0,68000.0,0.073555]
[1729818025629,0.3608,68007.0,67997.0,0.2775]
[1729818025630,0.10013906,68000.0,67997.0,0.2775]
[1729818025827,0.05006953,67998.0,67997.0,0.2775]
[1729818026027,0.05006953,67998.0,67997.0,0.1853]
[1729818026429,0.05006953,67998.0,67996.0,0.01372881]
[1729818026430,0.05006953,67997.0,67996.0,0.01372881]
[1729818026830,0.05006953,67997.0,67996.0,0.00220581]
[1729818027027,0.073558,67997.0,67996.0,0.00220581]
[1729818027225,0.12362753,67997.0,67996.0,0.00220581]
[1729818027623,0.05006953,67997.0,67996.0,0.1051721]
[1729818027828,0.12362753,67997.0,67996.0,0.1051721]
[1729818028227,0.12362753,67997.0,67996.0,0.19313479]
[1729818028541,0.12362753,67997.0,67996.0,0.1051721]
[1729818030031,0.12362753,67997.0,67996.0,0.17845012]
[1729818030232,0.12362753,67997.0,67996.0,0.00220581]
[1729818034238,0.073558,67997.0,67996.0,0.00220581]
[1729818034432,0.12362753,67997.0,67996.0,0.00220581]
[1729818034631,0.05006953,67997.0,67996.0,0.00220581]
[1729818035735,0.12362753,67997.0,67996.0,0.00220581]
[1729818038326,0.073558,67997.0,67996.0,0.00220581]
[1729818038730,0.12362753,67997.0,67996.0,0.00220581]
[1729818043144,0.12362753,67997.0,67996.0,0.06077391]
[1729818043945,0.12362853,67996.0,67995.0,0.0585681]
[1729818044445,0.12362953,67995.0,67993.0,0.0585681]
[1729818044645,0.05006953,67994.0,67993.0,0.0585681]
[1729818044845,0.05006953,67994.0,67992.0,0.0585681]
[1729818044846,0.12363153,67993.0,67992.0,0.0585681]
[1729818045248,0.073566,67990.0,67988.0,0.07327802]
[1729818045547,0.05006953,67989.0,67988.0,0.07327802]
[1729818045749,0.05006953,67989.0,67988.0,0.17507098]
[1729818046234,0.05006953,67989.0,67988.0,0.10179296]
[1729818046440,0.05006953,67988.0,67985.0,0.073571]
[1729818046641,0.073567,67989.0,67986.0,0.10183192]
[1729818046943,0.073567,67989.0,67987.0,0.10183192]
[1729818047138,0.073567,67989.0,67988.0,0.10183192]
[1729818047739,0.073567,67989.0,67985.0,0.16153369]
[1729818047740,0.05006953,67988.0,67985.0,0.16153369]
[1729818047940,0.073567,67989.0,67985.0,0.16153369]
[1729818048247,0.05006953,67987.0,67986.0,0.073569]
[1729818048836,0.05006953,67987.0,67986.0,0.16153169]
[1729818049143,0.05006953,67987.0,67986.0,0.26338216]
[1729818049345,0.05006953,67987.0,67986.0,0.17541947]
[1729818049746,0.3608,67991.0,67986.0,0.17541947]
[1729818050044,0.05006953,67990.0,67987.0,0.10013906]
[1729818050240,0.05006953,67988.0,67986.0,0.17541947]
[1729818050436,0.05006953,67987.0,67986.0,0.27555853]
[1729818051053,0.05006953,67987.0,67986.0,0.17541947]
[1729818051347,0.05006953,67987.0,67986.0,0.073569]
[1729818053348,0.48639453,67991.0,67986.0,0.073569]
[1729818053551,0.05006953,67990.0,67986.0,0.073569]
[1729818055551,0.05006953,67990.0,67987.0,0.22387167]
[1729818057261,0.36284,67991.0,67989.0,0.12363553]
[1729818057551,0.3608,67991.0,67990.0,0.073565]
[1729818058255,0.073561,67994.0,67990.0,0.073565]
[1729818058452,0.073561,67994.0,67992.0,0.10013906]
[1729818058645,0.05006953,67995.0,67992.0,0.10013906]
[1729818058851,0.05006953,67998.0,67994.0,0.05006953]
[1729818059049,0.41086953,67998.0,67995.0,0.05006953]
[1729818060561,0.41086953,67998.0,67996.0,0.22343365]
[1729818060760,0.41086953,67998.0,67997.0,0.22343357]
[1729818061455,0.48442653,67998.0,67997.0,0.22343357]
[1729818061854,0.48442653,67998.0,67997.0,0.22347135]
[1729818064650,0.43289502,67998.0,67997.0,0.22347135]
[1729818065853,0.43289502,67998.0,67997.0,0.10195039]
[1729818066054,0.52569502,67998.0,67997.0,0.17547345]
[1729818066258,0.52569502,67998.0,67997.0,0.07352306]
[1729818066551,0.52569502,67998.0,67986.0,0.073569]
[1729818066552,0.073559,67996.0,67995.0,0.07352306]
[1729818066858,0.12362853,67996.0,67995.0,0.17568253]
[1729818068163,0.12362853,67996.0,67995.0,0.07352306]
[1729818069657,0.05006953,67995.0,67994.0,0.07352306]
[1729818069962,0.12362953,67995.0,67994.0,0.17575749]
[1729818070160,0.84522953,67995.0,67994.0,0.17575749]
[1729818070550,0.93892953,67995.0,67994.0,0.17575749]
[1729818070762,0.86536953,67995.0,67993.0,0.07352306]
[1729818070954,0.21853053,67994.0,67993.0,0.07352306]
[1729818071155,0.21853053,67994.0,67993.0,0.1757038]
[1729818072069,0.21853053,67994.0,67993.0,0.10218074]
[1729818072464,0.21853053,67994.0,67988.0,0.073567]
[1729818072465,0.12363153,67993.0,67992.0,0.04409485]
[1729818072660,0.12363253,67992.0,67991.0,0.04409485]
[1729818073466,0.12363253,67992.0,67988.0,0.073567]
[1729818073467,0.05006953,67991.0,67990.0,0.04409485]
[1729818073658,0.05006953,67991.0,67988.0,0.073567]
[1729818073853,0.434367,67989.0,67988.0,0.073567]
[1729818075566,0.073568,67988.0,67987.0,0.05879313]
[1729818075771,0.12363753,67988.0,67987.0,0.05879313]
[1729818077258,0.05006953,67987.0,67985.0,0.073571]
[1729818079670,0.07357,67986.0,67984.0,0.10013906]
[1729818079966,0.05006953,67984.0,67983.0,0.01161517]
[1729818080169,0.05006953,67984.0,67982.0,0.14706542]
[1729818080356,0.3608,67983.0,67982.0,0.14706542]
[1729818080669,0.31662197,67983.0,67982.0,0.29759294]
[1729818080969,0.31662197,67983.0,67982.0,0.30885264]
[1729818089487,0.05006953,67984.0,67983.0,0.073573]
[1729818089680,0.05006953,67984.0,67983.0,0.29759194]
[1729818094091,0.05006953,67984.0,67983.0,0.22401894]
[1729818094393,0.12364153,67984.0,67983.0,0.22401894]
[1729818094602,0.07209915,67984.0,67983.0,0.22401894]
[1729818094788,0.07209915,67984.0,67983.0,0.2239995]
[1729818095386,0.16629915,67984.0,67983.0,0.2239995]
[1729818095586,0.25839915,67984.0,67983.0,0.2239995]
[1729818095792,0.26987378,67984.0,67983.0,0.10219134]
[1729818099499,0.27134663,67984.0,67983.0,0.1022158]
[1729818103003,0.27134663,67984.0,67983.0,0.17572213]
[1729818103602,0.27134663,67984.0,67983.0,0.1757171]
[1729818104304,0.27134663,67984.0,67983.0,0.17563234]
[1729818105609,0.17371206,67983.0,67981.0,0.07570769]
[1729818105806,0.12364353,67982.0,67981.0,0.07570769]
[1729818106105,0.12364353,67982.0,67981.0,0.00220639]
[1729818106311,0.61499306,67982.0,67981.0,0.00220639]
[1729818106609,0.05006953,67981.0,67979.0,0.05878904]
[1729818106806,0.48444553,67980.0,67979.0,0.05878904]
[1729818107297,0.92576553,67980.0,67979.0,0.05878904]
[1729818107495,0.92576553,67980.0,67978.0,0.05878904]
[1729818107496,0.12364653,67979.0,67978.0,0.05878904]
[1729818107908,0.56496653,67979.0,67978.0,0.05878904]
[1729818109496,0.56496653,67979.0,67977.0,0.05878904]
[1729818109497,0.05006953,67978.0,67977.0,0.05878904]
[1729818109713,0.12364753,67978.0,67977.0,0.05878904]
[1729818110504,0.12364753,67978.0,67976.0,0.05878904]
[1729818110505,0.12364953,67977.0,67976.0,0.05878904]
[1729818110900,0.05006953,67976.0,67975.0,0.05878904]
[1729818111097,0.12365053,67976.0,67975.0,0.05874737]
[1729818111703,0.17372006,67976.0,67975.0,0.05874737]
[1729818111910,0.12365053,67976.0,67975.0,0.05874737]
[1729818112101,0.073586,67971.0,67970.0,0.073587]
[1729818112410,0.48445553,67971.0,67970.0,0.17603982]
[1729818112601,0.48445553,67971.0,67970.0,0.24945684]
[1729818112805,0.48445553,67971.0,67970.0,0.17603982]
[1729818113307,0.48445553,67971.0,67970.0,0.073587]
[1729818113502,0.434386,67971.0,67970.0,0.12365653]
[1729818113807,0.3608,67971.0,67970.0,0.27613415]
[1729818115711,0.3608,67971.0,67970.0,0.36441718]
[1729818116210,0.3608,67971.0,67970.0,0.27613415]
[1729818116705,0.3608,67971.0,67970.0,0.36441718]
[1729818116907,0.3608,67971.0,67970.0,0.29083018]
[1729818117098,0.3608,67971.0,67970.0,0.20254715]
[1729818117502,0.3608,67971.0,67970.0,0.29083018]
[1729818117812,0.48445453,67972.0,67970.0,0.29083018]
[1729818118008,0.48445453,67972.0,67971.0,0.10240809]
[1729818118908,0.48445453,67972.0,67971.0,0.19069112]
[1729818121609,0.48445453,67972.0,67971.0,0.19056178]
[1729818121811,0.3608,67972.0,67971.0,0.24063131]
[1729818122013,0.3608,67980.0,67971.0,0.24063131]
[1729818122014,0.073578,67979.0,67975.0,0.073581]
[1729818122218,0.3608,67980.0,67978.0,0.10013906]
[1729818122414,0.3608,67980.0,67979.0,0.10240809]
[1729818122807,0.3608,67980.0,67979.0,0.19350809]
[1729818123307,0.3608,67980.0,67979.0,0.28770809]
[1729818123812,0.3608,67980.0,67979.0,0.36128509]
[1729818124115,0.3608,67980.0,67979.0,0.45918509]
[1729818124508,0.3608,67980.0,67979.0,0.5812848]
[1729818124716,0.30925371,67980.0,67979.0,0.5812848]
[1729818124908,0.30925371,67980.0,67979.0,0.45918509]
[1729818125510,0.30925371,67980.0,67979.0,0.58081576]
[1729818125717,0.30925371,67980.0,67979.0,0.45918509]
[1729818129017,0.30925371,67980.0,67979.0,0.47315759]
[1729818129717,0.3608,67983.0,67979.0,0.47315759]
[1729818129918,0.3608,67983.0,67981.0,0.10013906]
[1729818130120,0.3608,67983.0,67982.0,0.10240809]
[1729818130707,0.3608,67983.0,67982.0,0.17598209]
[1729818130915,0.3608,67983.0,67982.0,0.10240809]
[1729818131315,0.3608,67983.0,67982.0,0.10199522]
[1729818132119,0.3608,67983.0,67982.0,0.17556922]
[1729818132317,0.3608,67983.0,67982.0,0.26375641]
[1729818136520,0.3608,67983.0,67982.0,0.17556922]
[1729818138515,0.3608,67985.0,67982.0,0.17556922]
[1729818138820,0.41086953,67985.0,67984.0,0.10013906]
[1729818139019,0.46093906,67985.0,67984.0,0.20213428]
[1729818140722,0.53451006,67985.0,67984.0,0.20213428]
[1729818141314,0.53451006,67985.0,67984.0,0.15206475]
[1729818141515,0.53451006,67985.0,67984.0,0.17547086]
[1729818141717,0.073573,67983.0,67982.0,0.07347564]
[1729818141916,0.05006953,67980.0,67973.0,0.08818719]
[1729818142119,0.48445253,67974.0,67973.0,0.08818719]
[1729818142326,0.48445253,67974.0,67973.0,0.10239763]
[1729818144525,0.49840188,67974.0,67973.0,0.10239763]
[1729818148730,0.46093906,67974.0,67973.0,0.10239763]
[1729818148931,0.41086953,67974.0,67973.0,0.20253669]
[1729818149427,0.3608,67974.0,67973.0,0.20253669]
[1729818149627,0.3608,67974.0,67973.0,0.36430788]
[1729818149827,0.3608,67974.0,67973.0,0.39718688]
[1729818150228,0.31661458,67974.0,67973.0,0.48572237]
[1729818150842,0.3608,67981.0,67973.0,0.41213837]
[1729818151133,0.3608,67981.0,67980.0,0.18831551]
[1729818151334,0.3608,67981.0,67980.0,0.28982244]
[1729818151925,0.3608,67981.0,67980.0,0.36339844]
[1729818152131,0.3608,67981.0,67980.0,0.27522199]
[1729818152326,0.3608,67981.0,67980.0,0.39541306]
[1729818154633,0.3608,67987.0,67982.0,0.073574]
[1729818154834,0.3608,67987.0,67986.0,0.10013906]
[1729818155036,0.3608,67987.0,67986.0,0.20164599]
[1729818156239,0.3608,67987.0,67986.0,0.27429522]
[1729818156424,0.3608,67993.0,67992.0,0.073563]
[1729818156627,0.3608,67993.0,67992.0,0.27404293]
[1729818156930,0.12362653,67998.0,67992.0,0.63484293]
[1729818157132,0.073557,67998.0,67996.0,0.10013906]
[1729818157342,0.12362753,67997.0,67996.0,0.10013906]
[1729818157635,0.12362753,67997.0,67996.0,0.20003549]
[1729818158038,0.12362753,67997.0,67996.0,0.09989643]
[1729818159226,0.12362753,67997.0,67994.0,0.10013906]
[1729818159430,0.05006953,67997.0,67996.0,0.10013906]
[1729818159623,0.0898,67999.0,67998.0,0.073557]
[1729818160840,0.163356,67999.0,67998.0,0.073557]
[1729818161138,0.12362653,67998.0,67994.0,0.17370006]
[1729818161324,0.05006953,67995.0,67994.0,0.17370006]
[1729818161633,0.07357,67986.0,67983.0,0.17652045]
[1729818161833,0.3608,67991.0,67985.0,0.08804206]
[1729818162027,0.073569,67987.0,67986.0,0.09978153]
[1729818162936,0.05006953,67986.0,67985.0,0.10013906]
[1729818163240,0.073569,67987.0,67985.0,0.10013906]
[1729818163630,0.05006953,67988.0,67985.0,0.10013906]
[1729818163826,0.3608,67991.0,67988.0,0.073568]
[1729818164125,0.12363153,67994.0,67990.0,0.10013906]
[1729818164328,0.07634237,67993.0,67988.0,0.073568]
[1729818165725,0.073562,67994.0,67988.0,0.073568]
[1729818167036,0.073562,67994.0,67990.0,0.22624974]
[1729818168435,0.436277,67998.0,67993.0,0.07634237]
[1729818168640,0.434357,67998.0,67997.0,0.15268474]
[1729818169341,0.073558,67997.0,67993.0,0.15268474]
[1729818169752,0.073558,67997.0,67993.0,0.22624674]
[1729818169931,0.0934,68003.0,67994.0,0.05869329]
[1729818170134,0.073556,67999.0,67997.0,0.19667992]
[1729818170338,0.073557,67998.0,67996.0,0.11755418]
[1729818170842,0.073558,67997.0,67996.0,0.04399518]
[1729818171143,0.07356,67995.0,67994.0,0.04399518]
[1729818171535,0.07356,67995.0,67993.0,0.04399518]
[1729818171743,0.07356,67995.0,67994.0,0.04399518]
[1729818171939,0.07356,67995.0,67993.0,0.04399518]
[1729818172145,0.07356,67995.0,67994.0,0.04399518]
[1729818172538,0.073561,67994.0,67993.0,0.04399518]
[1729818172844,0.073561,67994.0,67991.0,0.05869329]
[1729818173032,0.073561,67994.0,67993.0,0.04399212]
[1729818173237,0.14990337,67994.0,67993.0,0.04399717]
[1729818173536,0.073562,67993.0,67992.0,0.04399717]
[1729818174343,0.17274237,67994.0,67982.0,0.4594]
[1729818174549,0.07357,67987.0,67982.0,0.3608]
[1729818175539,0.073571,67985.0,67982.0,0.3608]
[1729818175948,0.073572,67984.0,67982.0,0.3608]
[1729818176943,0.073572,67984.0,67983.0,0.07334005]
[1729818177639,0.073572,67984.0,67982.0,0.3608]
[1729818179643,0.07634237,67983.0,67973.0,0.07634237]
[1729818179840,0.073578,67979.0,67972.0,0.172224]
[1729818180039,0.073578,67979.0,67974.0,0.43714237]
[1729818180653,0.073579,67978.0,67974.0,0.43714237]
[1729818181551,0.1129382,67977.0,67974.0,0.43714237]
[1729818181739,0.06776587,67977.0,67974.0,0.43714237]
[1729818183952,0.073579,67978.0,67975.0,0.073582]
[1729818184956,0.15268474,67976.0,67971.0,0.073586]
[1729818185255,0.07634237,67971.0,67968.0,0.00220644]
[1729818185649,0.07634237,67969.0,67968.0,0.00220644]
[1729818185854,0.14992937,67971.0,67968.0,0.00220644]
[1729818186253,0.07634237,67969.0,67968.0,0.00220644]
[1729818186443,0.073588,67969.0,67968.0,0.00220644]
[1729818186755,0.073588,67969.0,67968.0,0.10263983]
[1729818187348,0.073588,67969.0,67968.0,0.07556412]
[1729818187548,0.073588,67969.0,67968.0,0.17588217]
[1729818187744,0.073588,67969.0,67968.0,0.07556412]
[1729818187954,0.14993037,67969.0,67968.0,0.17588381]
[1729818188149,0.14993037,67969.0,67968.0,0.00220644]
[1729818189865,0.073588,67969.0,67968.0,0.00220644]
[1729818195068,0.36284,67971.0,67968.0,0.00220644]
[1729818195275,0.3608,67971.0,67968.0,0.00220644]
[1729818196281,0.41091201,67971.0,67968.0,0.10243046]
[1729818196472,0.05011201,67970.0,67968.0,0.10243046]
[1729818198686,0.12370001,67969.0,67968.0,0.00220644]
[1729818199970,0.17381202,67969.0,67968.0,0.00220644]
[1729818200775,0.073588,67969.0,67968.0,0.05231845]
[1729818202376,0.073588,67969.0,67968.0,0.00220644]
[1729818205375,0.01444647,67973.0,67968.0,0.00220644]
[1729818205376,0.073587,67971.0,67968.0,0.00220644]
[1729818205581,0.073583,67974.0,67970.0,0.07636001]
[1729818205769,0.3608,67976.0,67973.0,0.15272002]
[1729818205970,0.073581,67977.0,67974.0,0.073582]
[1729818206183,0.07358,67977.0,67974.0,0.073582]
[1729818206490,0.14994001,67977.0,67974.0,0.073582]
[1729818206880,0.14994001,67977.0,67971.0,0.094]
[1729818207074,0.01396061,67980.0,67973.0,0.15272002]
[1729818207075,0.09032062,67980.0,67973.0,0.15272002]
[1729818207383,0.09032062,67980.0,67975.0,0.073582]
[1729818207384,0.073579,67978.0,67975.0,0.073582]
[1729818208087,0.073579,67978.0,67977.0,0.07358]
[1729818208275,0.073579,67978.0,67977.0,0.17386984]
[1729818209180,0.0924,67981.0,67977.0,0.17664985]
[1729818209482,0.073574,67982.0,67981.0,0.073574]
[1729818209675,0.073574,67982.0,67981.0,0.17386384]
[1729818212182,0.073574,67982.0,67981.0,0.24737995]
[1729818212481,0.073574,67982.0,67981.0,0.17386384]
[1729818214083,0.073574,67982.0,67981.0,0.073574]
[1729818214278,0.073574,67982.0,67981.0,0.17387403]
[1729818215187,0.14993401,67982.0,67981.0,0.10030003]
[1729818215487,0.51352002,67983.0,67979.0,0.07352882]
[1729818215691,0.22629702,67979.0,67978.0,0.07352882]
[1729818215890,0.14993701,67979.0,67978.0,0.17405583]
[1729818216187,0.073582,67975.0,67973.0,0.073584]
[1729818216391,0.25825971,67974.0,67973.0,0.073584]
[1729818216990,0.33184271,67974.0,67973.0,0.073584]
[1729818217982,0.18611695,67974.0,67973.0,0.073584]
[1729818218186,0.40820272,67974.0,67973.0,0.073584]
[1729818218385,0.40820272,67974.0,67970.0,0.01417726]
[1729818218586,0.07636001,67972.0,67970.0,0.073587]
[1729818218792,0.11253395,67971.0,67970.0,0.073587]
[1729818220591,0.4281581,67971.0,67967.0,0.0022068]
[1729818220790,0.073589,67968.0,67967.0,0.0022068]
[1729818220990,0.18612423,67968.0,67967.0,0.0022068]
[1729818221492,0.331835,67968.0,67967.0,0.0022068]
[1729818221791,0.18612423,67968.0,67967.0,0.0022068]
[1729818223296,0.18612423,67968.0,67967.0,0.19035695]
[1729818223297,0.073589,67968.0,67967.0,0.19035695]
[1729818223687,0.073589,67968.0,67967.0,0.19037294]
[1729818224284,0.12370334,67968.0,67967.0,0.19037294]
[1729818225991,0.12370334,67968.0,67967.0,0.18816614]
[1729818226387,0.12370334,67968.0,67967.0,0.09992319]
[1729818227197,0.12370334,67968.0,67967.0,0.18816614]
[1729818227491,0.12370334,67968.0,67967.0,0.09992319]
[1729818227892,0.12370334,67968.0,67967.0,0.18816614]
[1729818228485,0.12370334,67968.0,67967.0,0.09992319]
[1729818229498,0.05011434,67970.0,67967.0,0.15003753]
[1729818229698,0.3608,67973.0,67970.0,0.073586]
[1729818229895,0.3608,67973.0,67972.0,0.05011434]
[1729818230100,0.3608,67973.0,67972.0,0.28837448]
[1729818230598,0.073579,67978.0,67973.0,0.073583]
[1729818230900,0.07358,67977.0,67976.0,0.10022868]
[1729818231096,0.12369434,67977.0,67976.0,0.09992319]
[1729818231296,0.05011434,67976.0,67973.0,0.26021168]
[1729818231801,0.05011434,67976.0,67973.0,0.18662868]
[1729818231997,0.05011434,67976.0,67975.0,0.10022868]
[1729818232902,0.05011434,67976.0,67975.0,0.17381068]
[1729818233390,0.05011434,67976.0,67975.0,0.073582]
[1729818235094,0.12369434,67977.0,67975.0,0.073582]
[1729818235604,0.05011434,67977.0,67976.0,0.073581]
[1729818238299,0.05011434,67977.0,67976.0,0.17323189]
[1729818238501,0.12369434,67977.0,67976.0,0.09965089]
[1729818238707,0.48449434,67977.0,67976.0,0.07352126]
[1729818238900,0.41091434,67977.0,67975.0,0.07352126]
[1729818239206,0.12369534,67976.0,67975.0,0.07352126]
[1729818239401,0.12369534,67976.0,67975.0,0.17326962]
[1729818240100,0.12369534,67976.0,67975.0,0.17327267]
[1729818240301,0.12369534,67976.0,67975.0,0.09975141]
[1729818240502,0.12369534,67976.0,67975.0,0.09970259]
[1729818241497,0.12369534,67976.0,67975.0,0.0997076]
[1729818243905,0.12369534,67976.0,67975.0,0.1732896]
[1729818245307,0.15576753,67976.0,67975.0,0.073582]
[1729818251003,0.15577017,67976.0,67975.0,0.073582]
[1729818253303,0.12369534,67976.0,67975.0,0.2613361]
[1729818254215,0.12369534,67976.0,67975.0,0.17311349]
[1729818256116,0.12369534,67976.0,67975.0,0.09953149]
[1729818260716,0.48449534,67976.0,67975.0,0.09953149]
[1729818264310,0.41091434,67976.0,67970.0,0.08822261]
[1729818264618,0.41091434,67976.0,67974.0,0.07361367]
[1729818264619,0.073582,67975.0,67974.0,0.07361367]
[1729818264813,0.073582,67975.0,67974.0,0.09973083]
[1729818265513,0.12369634,67975.0,67974.0,0.09969187]
[1729818265718,0.12369634,67975.0,67974.0,0.17328411]
[1729818266222,0.12369634,67975.0,67974.0,0.07359224]
[1729818266410,0.05011434,67974.0,67973.0,0.07359224]
[1729818266614,0.12369734,67974.0,67973.0,0.1733692]
[1729818266819,0.12369734,67974.0,67973.0,0.09977696]
[1729818267017,0.12369734,67974.0,67973.0,0.17336269]